fUST/lending_fUST_20240928
["ID","MTS","AMOUNT","RATE_DAILY","PERIOD"]
[339347492,1727457051466,-838.66,0.00019452,2]
[339347493,1727457051475,-500.0,0.00019452,2]
[339347494,1727457051485,-1231.09,0.00019452,2]
[339347495,1727457051494,-500.0,0.00019452,2]
[339347496,1727457051506,-500.0,0.00019452,2]
[339347497,1727457051515,-500.0,0.00019452,2]
[339347498,1727457051525,-533.29018558,0.00019452,2]
[339347499,1727457051535,-500.0,0.00019452,2]
[339347500,1727457051545,-509.06102621,0.00019452,2]
[339347501,1727457051556,-9959.86,0.00019452,2]
[339347502,1727457051566,-500.0,0.00019452,2]
[339347503,1727457051576,-500.0,0.00019452,2]
[339347504,1727457051588,-500.0,0.00019452,2]
[339347505,1727457051597,-1966.71,0.00019452,2]
[339347506,1727457051606,-578.7498231,0.00019452,2]
[339347507,1727457051615,-487.01762256,0.00019452,2]
[339347508,1727457051625,-500.0,0.00019452,2]
[339347509,1727457051634,-614.41819999,0.00019452,2]
[339347510,1727457051643,-506.87517003,0.00019452,2]
[339347512,1727457051655,-500.0,0.00019452,2]
[339347514,1727457051665,-500.0,0.00019452,2]
[339347516,1727457051674,-500.0,0.00019452,2]
[339347518,1727457051683,-2396.6,0.00019452,2]
[339347520,1727457051694,-500.0,0.00019452,2]
[339347522,1727457051706,-500.0,0.00019452,2]
[339347525,1727457051716,-500.0,0.00019452,2]
[339347527,1727457051726,-642.9,0.00019452,2]
[339347529,1727457051736,-534.98973989,0.00019452,2]
[339347531,1727457051746,-500.0,0.00019452,2]
[339347533,1727457051755,-1092.42,0.00019452,2]
[339347535,1727457051766,-502.61556085,0.00019476,2]
[339347536,1727457051833,-178.615588,0.00019158,2]
[339347537,1727457051843,-4751.17274609,0.00019178,2]
[339347538,1727457051854,-306.65531906,0.00019476,2]
[339347539,1727457051864,-214.0,0.000195,10]
[339347540,1727457051875,-150.112234,0.000195,2]
[339347541,1727457051884,-151.0,0.00019509,2]
[339347542,1727457051894,-175.64599,0.00019509,2]
[339347543,1727457051903,-175.64599,0.00019509,2]
[339347544,1727457051912,-175.64599,0.00019509,2]
[339347545,1727457051923,-175.64599,0.00019509,2]
[339347546,1727457051932,-151.0,0.00019509,2]
[339347547,1727457051942,-151.0,0.00019509,2]
[339347548,1727457051952,-151.0,0.00019509,2]
[339347549,1727457051962,-151.0,0.00019519,2]
[339347550,1727457051972,-331.229729,0.00019519,2]
[339347551,1727457051982,-331.229729,0.00019519,2]
[339347552,1727457051992,-151.0,0.00019519,2]
[339347553,1727457052001,-151.0,0.00019519,2]
[339347554,1727457052011,-151.0,0.00019519,2]
[339347555,1727457052020,-157.199082,0.00019519,2]
[339347556,1727457052030,-157.199082,0.00019519,2]
[339347557,1727457052039,-288.414808,0.00019519,2]
[339347558,1727457052049,-288.414808,0.00019519,2]
[339347559,1727457052060,-151.0,0.00019519,2]
[339347560,1727457052069,-1492.419317,0.00019519,2]
[339347561,1727457052078,-1492.419317,0.00019519,2]
[339347562,1727457052088,-254.531945,0.00019519,2]
[339347563,1727457052097,-254.53195,0.00019519,2]
[339347564,1727457052106,-291.985378,0.00019519,2]
[339347565,1727457052115,-291.985378,0.00019519,2]
[339347566,1727457052125,-500.0,0.00019556,2]
[339347567,1727457052135,-500.0,0.00019556,2]
[339347568,1727457052144,-244.6405,0.00019607,2]
[339347569,1727457052153,-760.36415435,0.00019622,2]
[339347570,1727457052162,-151.0,0.00019631,2]
[339347571,1727457052172,-437.848,0.00019669,2]
[339347572,1727457052182,-151.0,0.00019689,2]
[339347573,1727457052192,-265.4086,0.00019689,2]
[339347574,1727457052203,-265.4086,0.00019689,2]
[339347575,1727457052213,-151.0,0.00019689,2]
[339347576,1727457052222,-151.0,0.00019689,2]
[339347577,1727457052232,-355.168131,0.00019689,2]
[339347578,1727457052243,-355.168131,0.00019689,2]
[339347579,1727457052254,-151.0,0.00019689,2]
[339347580,1727457052346,-151.0,0.00019689,2]
[339347581,1727457052355,-291.985378,0.00019689,2]
[339347582,1727457052364,-291.985386,0.00019689,2]
[339347583,1727457052373,-308.103314,0.00019689,2]
[339347584,1727457052382,-308.103314,0.00019689,2]
[339347585,1727457052392,-790.940848,0.00019689,2]
[339347586,1727457052401,-790.940848,0.00019689,2]
[339347587,1727457052410,-151.0,0.00019696,2]
[339347588,1727457052420,-151.0,0.00019696,2]
[339347589,1727457052429,-151.0,0.00019696,2]
[339347590,1727457052438,-267.64040366,0.00019705,2]
[339347591,1727457052447,-12081.52708458,0.00019705,2]
[339347592,1727457052456,-153.0,0.00019717,2]
[339347593,1727457052466,-153.0,0.00019717,2]
[339347594,1727457052476,-153.0,0.00019717,2]
[339347595,1727457052485,-298.0,0.00019717,2]
[339347596,1727457052494,-298.0,0.00019717,2]
[339347597,1727457052503,-298.0,0.00019717,2]
[339347598,1727457052512,-298.0,0.00019717,2]
[339347599,1727457052523,-298.0,0.00019717,2]
[339347600,1727457052533,-298.0,0.00019717,2]
[339347601,1727457052544,-298.0,0.00019717,2]
[339347602,1727457052555,-298.0,0.00019717,2]
[339347603,1727457052565,-298.0,0.00019717,2]
[339347604,1727457052576,-298.0,0.00019717,2]
[339347605,1727457052586,-298.0,0.00019717,2]
[339347606,1727457052595,-298.0,0.00019717,2]
[339347607,1727457052605,-298.0,0.00019717,2]
[339347608,1727457052614,-298.0,0.00019717,2]
[339347609,1727457052624,-298.0,0.00019717,2]
[339347610,1727457052633,-298.0,0.00019717,2]
[339347611,1727457052643,-298.0,0.00019717,2]
[339347612,1727457052654,-153.0,0.00019717,2]
[339347613,1727457052663,-153.0,0.00019717,2]
[339347614,1727457052673,-153.0,0.00019717,2]
[339347615,1727457052683,-298.0,0.00019717,2]
[339347616,1727457052693,-298.0,0.00019717,2]
[339347617,1727457052704,-298.0,0.00019717,2]
[339347618,1727457052714,-298.0,0.00019717,2]
[339347619,1727457052724,-298.0,0.00019717,2]
[339347620,1727457052736,-298.0,0.00019717,2]
[339347621,1727457052745,-298.0,0.00019717,2]
[339347622,1727457052756,-298.0,0.00019717,2]
[339347623,1727457052765,-298.0,0.00019717,2]
[339347624,1727457052775,-298.0,0.00019717,2]
[339347625,1727457052785,-298.0,0.00019717,2]
[339347626,1727457052794,-298.0,0.00019717,2]
[339347627,1727457052804,-298.0,0.00019717,2]
[339347628,1727457052814,-298.0,0.00019717,2]
[339347629,1727457052825,-153.0,0.00019717,2]
[339347630,1727457052836,-153.0,0.00019717,2]
[339347631,1727457052846,-153.0,0.00019717,2]
[339347632,1727457052857,-298.0,0.00019717,2]
[339347633,1727457052867,-298.0,0.00019717,2]
[339347634,1727457052877,-298.0,0.00019717,2]
[339347635,1727457052887,-298.0,0.00019717,2]
[339347636,1727457052899,-298.0,0.00019717,2]
[339347637,1727457052910,-298.0,0.00019717,2]
[339347638,1727457052920,-298.0,0.00019717,2]
[339347639,1727457052930,-298.0,0.00019717,2]
[339347640,1727457052941,-298.0,0.00019717,2]
[339347641,1727457052952,-298.0,0.00019717,2]
[339347642,1727457052962,-298.0,0.00019717,2]
[339347643,1727457052972,-298.0,0.00019717,2]
[339347644,1727457052982,-298.0,0.00019717,2]
[339347645,1727457052993,-298.0,0.00019717,2]
[339347646,1727457053017,-153.0,0.00019717,2]
[339347647,1727457053026,-153.0,0.00019717,2]
[339347648,1727457053036,-153.0,0.00019717,2]
[339347649,1727457053047,-298.0,0.00019717,2]
[339347650,1727457053058,-298.0,0.00019717,2]
[339347651,1727457053067,-298.0,0.00019717,2]
[339347652,1727457053076,-298.0,0.00019717,2]
[339347653,1727457053086,-298.0,0.00019717,2]
[339347654,1727457053103,-298.0,0.00019717,2]
[339347655,1727457053122,-298.0,0.00019717,2]
[339347656,1727457053136,-298.0,0.00019717,2]
[339347657,1727457053154,-298.0,0.00019717,2]
[339347658,1727457053171,-298.0,0.00019717,2]
[339347659,1727457053188,-298.0,0.00019717,2]
[339347660,1727457053206,-298.0,0.00019717,2]
[339347661,1727457053222,-298.0,0.00019717,2]
[339347662,1727457053237,-298.0,0.00019717,2]
[339347663,1727457053254,-153.0,0.00019717,2]
[339347664,1727457053267,-153.0,0.00019717,2]
[339347665,1727457053283,-153.0,0.00019717,2]
[339347666,1727457053298,-298.0,0.00019717,2]
[339347667,1727457053314,-298.0,0.00019717,2]
[339347668,1727457053332,-298.0,0.00019717,2]
[339347669,1727457053348,-298.0,0.00019717,2]
[339347670,1727457053360,-298.0,0.00019717,2]
[339347671,1727457053373,-298.0,0.00019717,2]
[339347672,1727457053389,-298.0,0.00019717,2]
[339347673,1727457053402,-298.0,0.00019717,2]
[339347674,1727457053418,-298.0,0.00019717,2]
[339347675,1727457053433,-298.0,0.00019717,2]
[339347676,1727457053445,-298.0,0.00019717,2]
[339347677,1727457053457,-298.0,0.00019717,2]
[339347678,1727457053469,-298.0,0.00019717,2]
[339347679,1727457053484,-298.0,0.00019717,2]
[339347680,1727457053503,-153.0,0.00019717,2]
[339347681,1727457053521,-153.0,0.00019717,2]
[339347682,1727457053534,-298.0,0.00019717,2]
[339347683,1727457053549,-298.0,0.00019717,2]
[339347684,1727457053565,-298.0,0.00019717,2]
[339347685,1727457053581,-298.0,0.00019717,2]
[339347686,1727457053594,-298.0,0.00019717,2]
[339347687,1727457053608,-298.0,0.00019717,2]
[339347688,1727457053621,-298.0,0.00019717,2]
[339347689,1727457053636,-298.0,0.00019717,2]
[339347690,1727457053649,-298.0,0.00019717,2]
[339347691,1727457053662,-298.0,0.00019717,2]
[339347692,1727457053675,-298.0,0.00019717,2]
[339347693,1727457053688,-298.0,0.00019717,2]
[339347694,1727457053702,-298.0,0.00019717,2]
[339347695,1727457053715,-298.0,0.00019717,2]
[339347696,1727457053730,-299.0,0.00019717,2]
[339347697,1727457053743,-299.0,0.00019717,2]
[339347698,1727457053756,-299.0,0.00019717,2]
[339347699,1727457053771,-299.0,0.00019717,2]
[339347700,1727457053780,-299.0,0.00019717,2]
[339347701,1727457053790,-299.0,0.00019717,2]
[339347702,1727457053800,-299.0,0.00019717,2]
[339347703,1727457053810,-299.0,0.00019717,2]
[339347704,1727457053820,-299.0,0.00019717,2]
[339347705,1727457053830,-299.0,0.00019717,2]
[339347706,1727457053841,-306.0,0.00019717,2]
[339347707,1727457053852,-306.0,0.00019717,2]
[339347708,1727457053864,-312.0,0.00019717,2]
[339347709,1727457053873,-1000.0,0.00019721,2]
[339347710,1727457053883,-1000.0,0.00019721,2]
[339347711,1727457053894,-1000.0,0.00019721,2]
[339347712,1727457053905,-404.86682683,0.00019721,2]
[339347713,1727457053916,-500.0,0.00019721,2]
[339347714,1727457053926,-501.86122269,0.00019721,2]
[339347715,1727457053936,-1000.0,0.00019721,2]
[339347716,1727457053945,-500.84471371,0.00019721,2]
[339347717,1727457053956,-1000.0,0.00019721,2]
[339347718,1727457053966,-1000.0,0.00019721,2]
[339347719,1727457053975,-1000.0,0.00019721,2]
[339347720,1727457053987,-151.0,0.00019726,2]
[339347721,1727457053998,-157.199082,0.00019726,2]
[339347722,1727457054017,-157.199082,0.00019726,2]
[339347723,1727457054026,-288.414808,0.00019726,2]
[339347724,1727457054035,-288.414809,0.00019726,2]
[339347725,1727457054045,-151.0,0.00019726,2]
[339347726,1727457054258,-1492.419317,0.00019726,2]
[339347727,1727457054271,-1492.419317,0.00019726,2]
[339347728,1727457054282,-151.0,0.00019726,2]
[339347729,1727457054292,-151.0,0.00019726,2]
[339347730,1727457054302,-308.103314,0.00019726,2]
[339347731,1727457054312,-308.103314,0.00019726,2]
[339347732,1727457054322,-500.0,0.00019726,2]
[339347733,1727457054332,-528.32,0.00019726,2]
[339347734,1727457054342,-790.940848,0.00019726,2]
[339347735,1727457054351,-790.940848,0.00019726,2]
[339347736,1727457054361,-657.03,0.00019726,2]
[339347737,1727457054371,-841.15,0.00019726,2]
[339347738,1727457054380,-500.0,0.00019726,2]
[339347739,1727457054389,-500.0,0.00019726,2]
[339347740,1727457054399,-720.84,0.00019726,2]
[339347741,1727457054408,-500.0,0.00019726,2]
[339347742,1727457054417,-500.0,0.00019726,2]
[339347743,1727457054427,-500.0,0.00019726,2]
[339347744,1727457054438,-200.0,0.00019726,2]
[339347745,1727457054449,-705.99,0.00019726,2]
[339347746,1727457054459,-500.0,0.00019726,2]
[339347747,1727457054468,-500.0,0.00019726,2]
[339347748,1727457054479,-181.95433877,0.00019726,2]
[339347749,1727457054489,-500.0,0.00019726,2]
[339347750,1727457054499,-806.08,0.00019726,2]
[339347751,1727457054521,-500.0,0.00019726,2]
[339347752,1727457054531,-500.0,0.00019726,2]
[339347753,1727457054542,-936.89,0.00019726,2]
[339347754,1727457054553,-838.66,0.00019726,2]
[339347755,1727457054563,-500.0,0.00019726,2]
[339347756,1727457054575,-1231.09,0.00019726,2]
[339347757,1727457054586,-500.0,0.00019726,2]
[339347758,1727457054595,-500.0,0.00019726,2]
[339347759,1727457054605,-9959.86,0.00019726,2]
[339347760,1727457054615,-500.0,0.00019726,2]
[339347761,1727457054625,-500.0,0.00019726,2]
[339347762,1727457054635,-1966.71,0.00019726,2]
[339347763,1727457054644,-500.0,0.00019726,2]
[339347764,1727457054655,-506.8,0.00019726,2]
[339347765,1727457054665,-500.0,0.00019726,2]
[339347766,1727457054675,-551.79,0.00019726,2]
[339347767,1727457054684,-2396.6,0.00019726,2]
[339347768,1727457054694,-600.887998,0.00019726,2]
[339347769,1727457054704,-500.0,0.00019726,2]
[339347770,1727457054714,-500.0,0.00019726,2]
[339347771,1727457054724,-642.9,0.00019726,2]
[339347772,1727457054734,-1092.42,0.00019726,2]
[339347773,1727457054744,-175.64599,0.00019731,2]
[339347774,1727457054764,-175.64599,0.00019731,2]
[339347775,1727457054773,-151.0,0.00019731,2]
[339347776,1727457054782,-151.0,0.00019731,2]
[339347777,1727457054792,-331.229729,0.00019731,2]
[339347778,1727457054801,-331.229729,0.00019731,2]
[339347779,1727457054812,-151.0,0.00019731,2]
[339347780,1727457054822,-151.0,0.00019731,2]
[339347781,1727457054833,-151.0,0.00019731,2]
[339347782,1727457054842,-151.0,0.00019731,2]
[339347783,1727457054852,-207.511894,0.00019731,2]
[339347784,1727457054862,-151.0,0.00019731,2]
[339347785,1727457054872,-265.4086,0.00019731,2]
[339347786,1727457054881,-265.4086,0.00019731,2]
[339347787,1727457054891,-151.0,0.00019731,2]
[339347788,1727457054901,-355.168131,0.00019731,2]
[339347789,1727457054910,-355.168131,0.00019731,2]
[339347790,1727457054919,-202.0,0.0001989,2]
[339347791,1727457054930,-151.456682,0.00019941,2]
[339347792,1727457054939,-151.456682,0.00019941,2]
[339347793,1727457054949,-600.0,0.0001995,3]
[339347794,1727457054959,-600.0,0.0001995,3]
[339347795,1727457054968,-600.0,0.0001995,3]
[339347796,1727457054977,-17202.41333264,0.0001999,2]
[339347797,1727457054988,-151.0,0.0001999,2]
[339347798,1727457054997,-151.0,0.0001999,2]
[339347799,1727457055014,-160.0,0.00019999,2]
[339347800,1727457055023,-151.456682,0.00019999,2]
[339347801,1727457055033,-151.456682,0.00019999,2]
[339347802,1727457055043,-2000.0,0.0002,3]
[339347803,1727457055052,-85976.09351408,0.0002,2]
[339347804,1727457055061,-151.0,0.0002,2]
[339347805,1727457055072,-331.229729,0.0002,2]
[339347806,1727457055081,-331.229729,0.0002,2]
[339347807,1727457055091,-151.0,0.0002,2]
[339347808,1727457055101,-151.0,0.0002,2]
[339347809,1727457055111,-151.0,0.0002,2]
[339347810,1727457055122,-265.4086,0.0002,2]
[339347811,1727457055131,-265.4086,0.0002,2]
[339347812,1727457055141,-151.0,0.0002,2]
[339347813,1727457055151,-151.0,0.0002,2]
[339347814,1727457055162,-165.760801,0.0002,2]
[339347815,1727457055171,-157.199082,0.0002,2]
[339347816,1727457055181,-157.19909,0.0002,2]
[339347817,1727457055191,-151.0,0.0002,2]
[339347818,1727457055202,-1492.419317,0.0002,2]
[339347819,1727457055213,-1492.419326,0.0002,2]
[339347820,1727457055224,-355.168131,0.0002,2]
[339347821,1727457055234,-355.168131,0.0002,2]
[339347822,1727457055244,-151.0,0.0002,2]
[339347823,1727457055261,-151.0,0.0002,2]
[339347824,1727457055271,-308.103314,0.0002,2]
[339347825,1727457055281,-308.103314,0.0002,2]
[339347826,1727457055291,-528.32,0.0002,2]
[339347827,1727457055301,-790.940848,0.0002,2]
[339347828,1727457055311,-790.940848,0.0002,2]
[339347829,1727457055321,-657.03,0.0002,2]
[339347830,1727457055331,-841.15,0.0002,2]
[339347831,1727457055341,-500.0,0.0002,2]
[339347832,1727457055351,-500.0,0.0002,2]
[339347833,1727457055362,-720.84,0.0002,2]
[339347834,1727457055371,-500.0,0.0002,2]
[339347835,1727457055381,-500.0,0.0002,2]
[339347836,1727457055390,-500.0,0.0002,2]
[339347837,1727457055399,-200.0,0.0002,2]
[339347838,1727457055409,-705.99,0.0002,2]
[339347839,1727457055419,-500.0,0.0002,2]
[339347840,1727457055429,-500.0,0.0002,2]
[339347841,1727457055439,-491.14,0.0002,2]
[339347842,1727457055448,-806.08,0.0002,2]
[339347843,1727457055457,-500.0,0.0002,2]
[339347844,1727457055466,-936.89,0.0002,2]
[339347845,1727457055475,-838.66,0.0002,2]
[339347846,1727457055484,-500.0,0.0002,2]
[339347847,1727457055494,-1231.09,0.0002,2]
[339347848,1727457055506,-500.0,0.0002,2]
[339347849,1727457055515,-9959.86,0.0002,2]
[339347850,1727457055524,-500.0,0.0002,2]
[339347851,1727457055534,-500.0,0.0002,2]
[339347852,1727457055543,-1966.71,0.0002,2]
[339347853,1727457055551,-500.0,0.0002,2]
[339347854,1727457055560,-151.19763648,0.0002,2]
[339347855,1727457055569,-500.0,0.0002,2]
[339347856,1727457055583,-608.0,0.0002,2]
[339347857,1727457055593,-2396.6,0.0002,2]
[339347858,1727457055602,-569.37418659,0.0002,2]
[339347859,1727457055612,-500.0,0.0002,2]
[339347860,1727457055622,-642.9,0.0002,2]
[339347861,1727457055631,-1092.42,0.0002,2]
[339347862,1727457055640,-7606.080683,0.00020013,5]
[339347863,1727457055649,-800.0,0.00020068,2]
[339347864,1727457055660,-160.0,0.00020172,2]
[339347865,1727457055670,-86326.0423748,0.00020173,2]
[339347866,1727457055685,-2895.54148907,0.00020173,2]
[339347867,1727457055716,-2106.33901139,0.00020173,2]
[339347868,1727457055728,-869.94591213,0.00020173,2]
[339347869,1727457055738,-330.29329238,0.00020173,2]
[339347870,1727457055754,-995.76253536,0.00020173,2]
[339347871,1727457055772,-6604.40595949,0.00020173,2]
[339347872,1727457055783,-4043.40223517,0.00020173,2]
[339347873,1727457055794,-756.324146,0.00020173,2]
[339347874,1727457055805,-5324.27794391,0.00020173,2]
[339347899,1727457936168,-175.871208,0.00017446,2]
[339347900,1727457936189,-2513.42299614,0.00017519,2]
[339347901,1727457936215,-186.15331133,0.00017619,2]
[339347902,1727457936240,-300.0,0.00017619,2]
[339347903,1727457936262,-300.0,0.00017619,2]
[339347904,1727457936286,-24900.0,0.0001762,2]
[339347905,1727457936308,-181.4113066,0.00017659,2]
[339347906,1727457936331,-175.871208,0.00017673,2]
[339347907,1727457936355,-175.871208,0.000179,2]
[339347908,1727457936378,-175.871208,0.00018127,2]
[339347909,1727457936402,-175.871208,0.00018355,2]
[339347910,1727457936423,-150.0,0.0001853,2]
[339347911,1727457936445,-212.59373577,0.000186,2]
[339347912,1727457936467,-500.0,0.0001869,2]
[339347913,1727457936491,-500.0,0.0001869,2]
[339347914,1727457936516,-500.0,0.0001869,2]
[339347915,1727457936538,-486.36232612,0.0001869,2]
[339347916,1727457936559,-205.69686127,0.0001869,2]
[339347917,1727457936741,-505.23611643,0.0001869,2]
[339347918,1727457936766,-500.0,0.0001869,2]
[339347919,1727457936788,-500.0,0.0001869,2]
[339347920,1727457936814,-514.98397808,0.0001869,2]
[339347921,1727457936837,-500.0,0.0001869,2]
[339347922,1727457936860,-1035.13480662,0.00018691,2]
[339347923,1727457936882,-9721.10835547,0.00018691,2]
[339347924,1727457950143,-23707.65988799,0.00018691,2]
[339347926,1727458034167,-300.0,0.0001869,2]
[339347927,1727458034188,-300.0,0.0001869,2]
[339347928,1727458034214,-15021.44594934,0.00018691,2]
[339347929,1727458034238,-87026.9039762,0.00018691,2]
[339347930,1727458034260,-86326.0423748,0.00018701,2]
[339347931,1727458034282,-151.0,0.0001877,2]
[339347932,1727458034306,-1325.288181,0.0001877,2]
[339347933,1727458034327,-1325.288181,0.0001877,2]
[339347934,1727458034348,-1325.288181,0.0001877,2]
[339347935,1727458034370,-1325.288181,0.0001877,2]
[339347936,1727458034391,-202.324027,0.0001877,2]
[339347937,1727458034410,-202.324027,0.0001877,2]
[339347938,1727458034431,-202.324027,0.0001877,2]
[339347939,1727458034452,-202.324027,0.0001877,2]
[339347940,1727458034474,-212.59373577,0.0001877,2]
[339347941,1727458034494,-502.46159448,0.00018773,2]
[339347942,1727458034516,-1325.288181,0.0001885,2]
[339347943,1727458034538,-1325.288181,0.0001885,2]
[339347944,1727458034559,-202.324027,0.0001885,2]
[339347945,1727458034580,-202.324027,0.0001885,2]
[339347946,1727458034602,-151.0,0.0001886,2]
[339347947,1727458034623,-151.0,0.0001886,2]
[339347948,1727458034645,-500.0,0.00018873,2]
[339347949,1727458034666,-1000.0,0.00018879,2]
[339347950,1727458034687,-3848.0,0.000189,2]
[339347951,1727458034708,-500.0,0.00018904,2]
[339347952,1727458034734,-6852.96302333,0.00018936,2]
[339347953,1727458034755,-212.59373577,0.0001894,2]
[339347954,1727458034777,-1325.288181,0.0001895,2]
[339347955,1727458034800,-1325.288181,0.0001895,2]
[339347956,1727458034822,-202.324027,0.0001895,2]
[339347957,1727458034844,-202.324027,0.0001895,2]
[339347958,1727458034873,-24956.75709214,0.00018962,3]
[339347962,1727458116121,2790.07356328,0.00014,4]
[339347963,1727458150384,-416.90604452,0.000167,2]
[339348036,1727458232317,-1586.74728136,0.000167,2]
[339348037,1727458232327,-238.675452,0.00017209,2]
[339348039,1727458232336,-626.28957426,0.0001764,2]
[339348041,1727458232346,-300.0,0.00017881,2]
[339348042,1727458232357,-300.0,0.00017881,2]
[339348044,1727458232366,-650.10647032,0.00017881,2]
[339348046,1727458232375,-24900.0,0.00017882,2]
[339348048,1727458232384,-238.675452,0.00017894,2]
[339348049,1727458232394,-473.06447871,0.00018522,2]
[339348050,1727458232403,-238.675452,0.00018579,2]
[339348051,1727458232413,-717.05741019,0.00018601,2]
[339348068,1727458238280,-282.94258981,0.00018601,2]
[339348070,1727458238290,-500.0,0.00018799,2]
[339348072,1727458238299,-353.6652815,0.00018799,2]
[339348074,1727458238309,-340.45362828,0.00018799,2]
[339348076,1727458238320,-500.0,0.00018799,2]
[339348078,1727458238329,-500.0,0.00018799,2]
[339348080,1727458238338,-500.0,0.00018799,2]
[339348082,1727458238348,-460.48878466,0.00018799,2]
[339348084,1727458238358,-42783.56200347,0.000188,2]
[339348088,1727458238381,-9621.72372901,0.000188,2]
[339348091,1727458238396,-25942.66852001,0.000188,2]
[339348094,1727458238406,-690.08987108,0.000188,2]
[339348096,1727458238415,-297.63123011,0.00018852,2]
[339348097,1727458238424,-1326.08849023,0.00018895,10]
[339348099,1727458238433,-109805.397907,0.00018952,3]
[339348101,1727458238442,-4256.79516966,0.00018952,3]
[339348103,1727458238451,-600.0,0.00018972,2]
[339348105,1727458238460,-1325.288181,0.00018979,2]
[339348108,1727458238470,-1325.288181,0.00018979,2]
[339348109,1727458238479,-202.324027,0.00018979,2]
[339348111,1727458238488,-202.324027,0.00018979,2]
[339348113,1727458238497,-1325.288181,0.0001899,2]
[339348116,1727458238507,-1325.288181,0.0001899,2]
[339348118,1727458238516,-1325.288181,0.0001899,2]
[339348119,1727458238525,-1325.288181,0.0001899,2]
[339348122,1727458238535,-202.324027,0.0001899,2]
[339348124,1727458238544,-202.324027,0.0001899,2]
[339348126,1727458238553,-202.324027,0.0001899,2]
[339348128,1727458238563,-202.324027,0.0001899,2]
[339348130,1727458238574,-1325.288181,0.00019,2]
[339348132,1727458238583,-1325.288181,0.00019,2]
[339348134,1727458238595,-202.324027,0.00019,2]
[339348136,1727458238605,-202.324027,0.00019,2]
[339348154,1727458238753,-297.63123008,0.00019078,2]
[339348156,1727458238764,-3009.51214326,0.00019078,2]
[339348158,1727458238774,-1325.288181,0.000191,2]
[339348160,1727458238783,-1325.288181,0.000191,2]
[339348162,1727458238792,-202.324027,0.000191,2]
[339348164,1727458238802,-202.324027,0.000191,2]
[339348166,1727458238813,-109805.397907,0.00019158,3]
[339348168,1727458238823,-4256.79516966,0.00019158,3]
[339348170,1727458238833,-70091.73948056,0.00019168,3]
[339348204,1727458239138,-26692.62879398,0.00019168,3]
[339348299,1727458240081,-13021.02963246,0.00019168,3]
[339348301,1727458240091,-6385.19275449,0.00019168,3]
[339348303,1727458240100,-417.73470645,0.00019173,2]
[339348305,1727458240109,-1325.288181,0.00019178,2]
[339348308,1727458240121,-1325.288181,0.00019178,2]
[339348309,1727458240130,-512.23399119,0.00019178,2]
[339348312,1727458240139,-252.56699006,0.00019178,2]
[339348314,1727458240150,-504.43924134,0.00019178,2]
[339348316,1727458240159,-504.78427138,0.00019178,2]
[339348318,1727458240169,-202.324027,0.00019178,2]
[339348320,1727458240178,-202.324025,0.00019178,2]
[339348322,1727458240188,-500.0,0.00019178,2]
[339348324,1727458240198,-700.13,0.00019178,2]
[339348326,1727458240207,-304.36913356,0.00019178,2]
[339348328,1727458240216,-500.0,0.00019178,2]